{"text_format":"1","workbook":"xlsx","n_sheets":16,"sheets":["Grant Instructions","General Information","Other Funding Sources","Sustainability Narrative","Personnel Request","Fringe Benefits","Contract Services Request","Drug Testing Supplies","Reagents Drug Supplies","Other Costs","Equipment","CACJ Conference Budget","Training & Travel","Transportation Narrative","Transportation Request","Court Narrative"],"not_rendered":{"charts":0,"images":0,"macros":1,"external_links":1,"defined_names":23,"comments":0,"pivot_tables":0},"unopened":[],"bounds":{"document_bytes":16777216,"sheet_cells":100000,"rows_first":2000,"rows_last":500,"rows_between":2000,"halvings":0,"cell_chars":16384,"cell_head_chars":4096},"cells_cut":0,"cells_raw":0,"read":"part_too_large","date_system":"1900"}

{"sheet":"Grant Instructions","index":0,"n_rows":0,"n_cols":0,"rows_kept":0,"cut":false,"hidden":false,"merged":[]}

{"sheet":"General Information","index":1,"n_rows":146,"n_cols":14,"rows_kept":146,"cut":false,"hidden":false,"merged":[[17,2,17,3],[19,2,19,3],[21,2,21,5],[22,2,22,5],[1,2,1,5],[7,2,7,3],[9,2,9,3],[11,2,11,3],[13,2,13,5],[15,2,15,3]]}
[null,null,null,null,null,null,null,null,null,null,"Select One:","Select One:",null,"Select One:"]
[null,null,"General Information ",null,null,null,null,null,null,null,"Alapaha","Alapaha Circuit Drug Court",null,"Superior "]
[null,null,null,null,null,null,null,null,null,null,"Alcovy","Alcovy Circuit Juvenile Court",null,"State"]
[null,"Name of person filling out this form:",null,"Email address:",null,"Phone:",null,null,null,null,"Appalachian","Alcovy Mental Health Court",null,"Juvenile"]
[null,null,null,null,null,null,null,null,null,null,"Atlanta","Appalachian Family Dependency Court"]
[null,null,"On April 19 -20, 2018 who will be available to answer questions on this grant, if the committee shall have any?"," ","Please provide a phone number for this person: ",null,null,null,null,null,"Atlantic","Appalachian Judicial Circuit Drug Court",null,"Select One: "]
[null,null,null,null,null,null,null,null,null,null,"Augusta","Appalachian Judicial Mental Health Drug Court",null,"Adult Felony Drug Court"]
[null,null,"From the list below, please select your court name. If you are submitting a budget for an implementation court, please scroll to the end of the list and select \"Implementation Court\". To make multiple selections from the Court Name dropdown, click the dropdown arrow each time you want to make a new selection in a particular cell. E.G. if you have 3 Adult Drug Courts in your circuit, click the arrow in the \"Court Name\" for that row 3 times and select a different court with each click. ",null,"Select One:",null,null,null,null,null,"Bell Forsyth","Appalachian Judicial Veterans Court",null,"Adult Mental Health Court"]
[null,null,null,null,null,null,null,null,null,null,"Blue Ridge","Appalachian Juvenile Court",null,"DUI Court"]
[null,null,"Please enter your implementation court's name: ",null,null,null,null,null,null,null,"Brunswick","Athens-Clarke County DUI Court",null,"Family Dependency Treatment Court"]
[null,null,null,null,null,null,null,null,null,null,"Chattahoochee","Athens-Clarke County Treatment Court",null,"Juvenile Drug Court"]
[null,null,"Please select the Judicial Circuit in which your court is operating: ",null,"Select One:",null,null,null,null,null,"Cherokee","Athens-Clarke FDTC",null,"Juvenile Mental Health Court"]
[null,null,null,null,null,null,null,null,null,null,"Clayton","Atlantic Judicial Circuit Drug Court",null,"Veterans Court"]
[null,null,"NOTE: Program is defined by the type of offender population your court primarily serves and the standards associated with serving that population - i.e. substance dependent, mentally ill, veterans, those with a history of DUI, families with substance dependence or mental illness, substance dependent juveniles, or mentally ill juveniles.",null,null,null,null,null,null,null,"Cobb","Augusta Judicial Circuit Drug Court"]
[null,null,null,null,null,null,null,null,null,null,"Conasauga","Augusta Judicial Circuit Mental Health Court"]
[null,null,"Please select the primary program your accountability court offers. ",null,"Select One: ",null,null,null,null,null,"Cordele","Baldwin County FDTC"]
[null,null,null,null,null,null,null,null,null,null,"Coweta","Barrow County Adult Felony Drug Court"]
[null,null,"Please select the secondary program (if any) that your accountability court offers. ",null,"Select One: ",null,null,null,null,null,"Dougherty","Bartow County FDTC IMP"]
[null,null,null,null,null,null,null,null,null,null,"Douglas","Bibb County Mental Health Court"]
[null,null,"Please select your court level. ",null,"Select One:",null,null,null,null,null,"Dublin","Bibb County Veterans Court"]
[null,null,null,null,null,null,null,null,null,null,"Eastern","Blue Ridge Judicial Circuit Drug Court"]
[null,null,"Total Requested Funds",null,null,null,null,null,null,null,"Enotah","Brunswick Judicial Circuit Drug Court"]
[null,null,"Please note, the Requested Funds and Total Budgeted Amount will automatically calculate and popuate based on your entries in other tabs. You will need to indicate the Matched Funds manually. ",null,null,null,null,null,null,null,"Flint","Bulloch County Accountability Court"]
[null,null,null,null,null,null,null,null,null,null,"Forsyth","Burke County DUI Court"]
[null,null,null,null,null,null,null,null,null,null,"Griffin","Caroll County FDTC IMP"]
[null,null,null,"Requested Funds","Matched Funds","Total Budgeted Amount",null,null,null,null,"Gwinnett","Carroll County Drug Court"]
[null,null,null,null,null,null,null,null,null,null,"Houston","Carroll County Juvenile Court"]
[null,null,"Personnel",{"$f":"'Personnel Request'!N20","v":0},0,{"$f":"SUM(D28:E28)","v":0},null,null,null,null,"Lookout Mountain","Chatham County DUI Court"]
[null,null,null,null,null,null,null,null,null,null,"Macon","Chatham County FDTC "]
[null,null,"Contract Services",{"$f":"'Contract Services Request'!M14","v":0},0,{"$f":"SUM(D30:E30)","v":0},null,null,null,null,"Middle","Chatham County Juvenile Court"]
[null,null,null,null,null,null,null,null,null,null,"Mountain","Chatham County Veterans Court"]
[null,null,"Drug Testing Supplies",{"$f":"'Drug Testing Supplies'!N8","v":0},0,{"$f":"SUM(D32:E32)","v":0},null,null,null,null,"Northern","Cherokee Circuit Drug Court"]
[null,null,null,null,null,null,null,null,null,null,"Northeastern","Cherokee County DUI Court"]
[null,null,"Other Costs",{"$f":"'Other Costs'!I5","v":0},0,{"$f":"SUM(D34:E34)","v":0},null,null,null,null,"Ocmulgee","Cherokee County Mental Health Court"]
[null,null,null,null,null,null,null,null,null,null,"Oconee","Cherokee County Veterans Court IMP"]
[null,null,"Equipment",{"$f":"Equipment!J4","v":0},0,{"$f":"SUM(D36:E36)","v":0},null,null,null,null,"Ogeechee","Clayton County Adult Felony Drug"]
[null,null,null,null,null,null,null,null,null,null,"Pataula","Clayton County DUI Court"]
[null,null,"Training & Travel",{"$f":"'CACJ Conference Budget'!O7","v":0},0,{"$f":"SUM(D38:E38)","v":0},null,null,null,null,"Paulding","Cobb County Drug Court"]
[null,null,null,null,null,null,null,null,null,null,"Piedmont","Cobb County DUI Court"]
[null,null,"Transportation ",{"$f":"'Transportation Request'!M6","v":0},0,{"$f":"SUM(D40:E40)","v":0},null,null,null,null,"Rockdale","Cobb County FDTC"]
[null,null,null,null,null,null,null,null,null,null,"Rome","Cobb County Juvenile Court"]
[null,null,null,null,null,null,null,null,null,null,"South Georgia","Cobb County Mental Health Court"]
[null,null,"Total CACJ Funds",{"$f":"SUM(D28,D30,D32,D34,D36,D38,D40)","v":0},"Total Other Funds",{"$f":"'[1]Other Funding Sources'!L6","v":0},null,null,null,null,"Southern","Cobb County Veterans Court"]
[null,null,null,null,null,null,null,null,null,null,"Southwestern","Colquitt SA/MH Court"]
[null,null,null,null,null,null,null,null,null,null,"Stone Mountain","Consuaaga Drug Court"]
[null,null,null,null,null,null,null,null,null,null,"Tallapoosa","Coweta County Adult Felony Drug Court"]
[null,null,null,null,null,null,null,null,null,null,"Tifton","Coweta County DUI Court"]
[null,null,null,null,null,null,null,null,null,null,"Toombs","Coweta County FDTC "]
[null,null,null,null,null,null,null,null,null,null,"Towaliga","Coweta County Veterans Court"]
[null,null,null,null,null,null,null,null,null,null,"Waycross","Coweta Judcial Circuit"]
[null,null,null,null,null,null,null,null,null,null,"Western","Crisp County Adult Felony Drug Court"]
[null,null,null,null,null,null,null,null,null,null,null,"Dawson County Treatment Court"]
[null,null,null,null,null,null,null,null,null,null,null,"DeKalb County Drug Court"]
[null,null,null,null,null,null,null,null,null,null,null,"DeKalb County DUI Court"]
[null,null,null,null,null,null,null,null,null,null,null,"DeKalb County Juvenile Court"]
[null,null,null,null,null,null,null,null,null,null,null,"DeKalb County Juvenile Court (MH)"]
[null,null,null,null,null,null,null,null,null,null,null,"DeKalb County Misdemeanor Mental"]
[null,null,null,null,null,null,null,null,null,null,null,"DeKalb County Superior Mental Health Court"]
[null,null,null,null,null,null,null,null,null,null,null,"DeKalb County Veterans Court"]
[null,null,null,null,null,null,null,null,null,null,null,"Dougherty County MH/SA Court"]
[null,null,null,null,null,null,null,null,null,null,null,"Douglas Circuit Felony Drug Court"]
[null,null,null,null,null,null,null,null,null,null,null,"Douglas County DUI Court"]
[null,null,null,null,null,null,null,null,null,null,null,"Douglas County FDTC"]
[null,null,null,null,null,null,null,null,null,null,null,"Dublin Mental Health/Veterans Court"]
[null,null,null,null,null,null,null,null,null,null,null,"Elbert County Drug Court"]
[null,null,null,null,null,null,null,null,null,null,null,"Enotah County FDTC"]
[null,null,null,null,null,null,null,null,null,null,null,"Enotah Drug Court (North)"]
[null,null,null,null,null,null,null,null,null,null,null,"Enotah Drug Court (South)"]
[null,null,null,null,null,null,null,null,null,null,null,"Enotah Mental Health Court"]
[null,null,null,null,null,null,null,null,null,null,null,"Fayette County DUI Court"]
[null,null,null,null,null,null,null,null,null,null,null,"Forsyth County Drug Court"]
[null,null,null,null,null,null,null,null,null,null,null,"Forsyth County DUI Court"]
[null,null,null,null,null,null,null,null,null,null,null,"Forsyth County FDTC IMP"]
[null,null,null,null,null,null,null,null,null,null,null,"Forsyth County Juvenile Court"]
[null,null,null,null,null,null,null,null,null,null,null,"Forsyth Mental Health Court"]
[null,null,null,null,null,null,null,null,null,null,null,"Fulton County Accountability Court"]
[null,null,null,null,null,null,null,null,null,null,null,"Fulton County DUI Court"]
[null,null,null,null,null,null,null,null,null,null,null,"Fulton County FDTC"]
[null,null,null,null,null,null,null,null,null,null,null,"Fulton County Juvenile (Partners)"]
[null,null,null,null,null,null,null,null,null,null,null,"Fulton County Juvenile Court"]
[null,null,null,null,null,null,null,null,null,null,null,"Fulton County Mental Health Court"]
[null,null,null,null,null,null,null,null,null,null,null,"Fulton County Veterans Court"]
[null,null,null,null,null,null,null,null,null,null,null,"Griffin Judicial Circuit Drug Court"]
[null,null,null,null,null,null,null,null,null,null,null,"Gwinnett County Drug Court"]
[null,null,null,null,null,null,null,null,null,null,null,"Gwinnett County DUI Court"]
[null,null,null,null,null,null,null,null,null,null,null,"Gwinnett County Mental Health Court"]
[null,null,null,null,null,null,null,null,null,null,null,"Gwinnett County Veterans Court"]
[null,null,null,null,null,null,null,null,null,null,null,"Gwinnett Juvenile Court"]
[null,null,null,null,null,null,null,null,null,null,null,"Hall County Adult Felony Court"]
[null,null,null,null,null,null,null,null,null,null,null,"Hall County DUI Court"]
[null,null,null,null,null,null,null,null,null,null,null,"Hall County FDTC"]
[null,null,null,null,null,null,null,null,null,null,null,"Hall County HELP Court"]
[null,null,null,null,null,null,null,null,null,null,null,"Hall County Veterans Court"]
[null,null,null,null,null,null,null,null,null,null,null,"Henry County Adult Felony Drug Court"]
[null,null,null,null,null,null,null,null,null,null,null,"Henry County DUI Court"]
[null,null,null,null,null,null,null,null,null,null,null,"Henry County Juvenile MH Court"]
[null,null,null,null,null,null,null,null,null,null,null,"Henry County Resource Court"]
[null,null,null,null,null,null,null,null,null,null,null,"Houston Mental Health Court"]
[null,null,null,null,null,null,null,null,null,null,null,"Jackson County Drug Court"]
[null,null,null,null,null,null,null,null,null,null,null,"Jefferson County Adult Drug Court"]
[null,null,null,null,null,null,null,null,null,null,null,"Liberty County DUI Court"]
[null,null,null,null,null,null,null,null,null,null,null,"Liberty County Veterans Court"]
[null,null,null,null,null,null,null,null,null,null,null,"Lookout Mountain Felony Drug Court"]
[null,null,null,null,null,null,null,null,null,null,null,"Lowndes County DUI Court"]
[null,null,null,null,null,null,null,null,null,null,null,"Lowndes County Treatment Court"]
[null,null,null,null,null,null,null,null,null,null,null,"Macon-Bibb County Adult Drug Court"]
[null,null,null,null,null,null,null,null,null,null,null,"Mountain Judicial Circuit Drug Court"]
[null,null,null,null,null,null,null,null,null,null,null,"Mountain Judicial Circuit FDTC"]
[null,null,null,null,null,null,null,null,null,null,null,"Muscogee County Adult Felony Drug Court"]
[null,null,null,null,null,null,null,null,null,null,null,"Muscogee County FDTC IMP"]
[null,null,null,null,null,null,null,null,null,null,null,"Muscogee County Juvenile Court"]
[null,null,null,null,null,null,null,null,null,null,null,"Muscogee County Mental Health Court"]
[null,null,null,null,null,null,null,null,null,null,null,"Muscogee County Veterans Court"]
[null,null,null,null,null,null,null,null,null,null,null,"Newton County Adult Felony Drug Court"]
[null,null,null,null,null,null,null,null,null,null,null,"Newton County FDTC IMP"]
[null,null,null,null,null,null,null,null,null,null,null,"Newton County Veterans Court"]
[null,null,null,null,null,null,null,null,null,null,null,"Ocmulgee Circuit ATCC"]
[null,null,null,null,null,null,null,null,null,null,null,"Pataula Judicial Circuit Drug Court"]
[null,null,null,null,null,null,null,null,null,null,null,"Paulding Circuit Drug Court"]
[null,null,null,null,null,null,null,null,null,null,null,"Piedmont Circuit Mental Health Court"]
[null,null,null,null,null,null,null,null,null,null,null,"Richmond County State Acct Court"]
[null,null,null,null,null,null,null,null,null,null,null,"Richmond County Veterans Court"]
[null,null,null,null,null,null,null,null,null,null,null,"Rockdale County Adult Drug Court"]
[null,null,null,null,null,null,null,null,null,null,null,"Rockdale County DUI Court"]
[null,null,null,null,null,null,null,null,null,null,null,"Rockdale County Juvenile Court"]
[null,null,null,null,null,null,null,null,null,null,null,"Rockdale Mental Health Court"]
[null,null,null,null,null,null,null,null,null,null,null,"Rome Circuit Mental Health Court"]
[null,null,null,null,null,null,null,null,null,null,null,"Rome Judicial Circuit"]
[null,null,null,null,null,null,null,null,null,null,null,"Savannah-Chatham County Drug Court"]
[null,null,null,null,null,null,null,null,null,null,null,"Savannah-Chatham Mental Health Court"]
[null,null,null,null,null,null,null,null,null,null,null,"South Georgia Drug Court"]
[null,null,null,null,null,null,null,null,null,null,null,"Southwestern Drug Court"]
[null,null,null,null,null,null,null,null,null,null,null,"Spalding County Mental Health & Vet imp"]
[null,null,null,null,null,null,null,null,null,null,null,"Tallapoosa Circuit Drug Court"]
[null,null,null,null,null,null,null,null,null,null,null,"Tallapoosa Circuit Mental Health Court"]
[null,null,null,null,null,null,null,null,null,null,null,"Tift County Adult Felony Drug Court"]
[null,null,null,null,null,null,null,null,null,null,null,"Tift County DUI Court"]
[null,null,null,null,null,null,null,null,null,null,null,"Toombs Circuit Drug Court"]
[null,null,null,null,null,null,null,null,null,null,null,"Towaliga Accountability Court"]
[null,null,null,null,null,null,null,null,null,null,null,"Troup County Adult  Drug Court"]
[null,null,null,null,null,null,null,null,null,null,null,"Troup County DUI Court"]
[null,null,null,null,null,null,null,null,null,null,null,"Troup County FDTC IMP"]
[null,null,null,null,null,null,null,null,null,null,null,"Waycross Adult Drug Court"]
[null,null,null,null,null,null,null,null,null,null,null,"Western Judicial Circuit Drug Court"]
[null,null,null,null,null,null,null,null,null,null,null,"Western Judicial Circuit Veterans Court"]
[null,null,null,null,null,null,null,null,null,null,null,"NEW Implementation Court"]

{"sheet":"Other Funding Sources","index":2,"n_rows":34,"n_cols":12,"rows_kept":34,"cut":false,"hidden":false,"merged":[[1,1,1,4],[3,1,3,4]]}
[]
[null,"Other Funding Sources"]
[]
[null,"This sheet is meant to provide CACJ with a sense of how sustainable your court program is. Please list the amount your court received from other fund sources for programming and expenses in the previous STATE Fiscal Year. All funds reported here should be NON_CACJ funding. To make multiple selections from the \"How Funds are Used?\" dropdown, click the dropdown arrow each time you want to make a new selection in a particular cell. E.G. if you use Bryne-JAG for Personnel, Treatment, and Office Supplies, click the arrow in the \"How Funds are Used?\" for that row 3 times and select a different category with each click. "]
[]
[null,"Fund Source","Total Annual Funds","How Funds are Used?","Fund Source End Date? (If applicable)",null,null,"Select All Applicable: ",null,null,"Other Funding Sources",{"$f":"SUM(C8,C10,C12,C14,C16,C18,C20,C22,C24,C26,C28,C30,C32,C34)","v":0}]
[null,null,null,null,null,null,null,"Drug Testing"]
[null,"Byrne-JAG Funding",0,"Select All Applicable: ",null,null,null,"Equipment"]
[null,null,null,null,null,null,null,"Evaluation"]
[null,"Community Service Boards",0,"Select All Applicable: ",null,null,null,"Office Supplies"]
[null,null,null,null,null,null,null,"Personnel"]
[null,"DATE Fund",0,"Select All Applicable: ",null,null,null,"Travel/Training"]
[null,null,null,null,null,null,null,"Treatment"]
[null,"Financial Donations",0,"Select All Applicable: ",null,null,null,"All of the above"]
[]
[null,"Governor's Office of Highway Safety",0,"Select All Applicable: "]
[]
[null,"Independent 501(c )3",0,"Select All Applicable: "]
[]
[null,"Juvenile Justice Incentive Grant",0,"Select All Applicable: "]
[]
[null,"Local Government (Municipal or County)",0,"Select All Applicable: "]
[]
[null,"non-JAG BJA funds",0,"Select All Applicable: "]
[]
[null,"Participant Fees",0,"Select All Applicable: "]
[]
[null,"Private Foundation Grant",0,"Select All Applicable: "]
[]
[null,"Revenue from Lab",0,"Select All Applicable: "]
[]
[null,"SAMHSA",0,"Select All Applicable: "]
[]
[null,"All other non-CACJ Funds",0,"Select All Applicable: "]

{"sheet":"Sustainability Narrative","index":3,"n_rows":4,"n_cols":2,"rows_kept":4,"cut":false,"hidden":false,"merged":[[1,1,1,5],[3,1,3,5]]}
[]
[null,"Sustainability Narrative"]
[]
[null,"Describe your courts Sustainability Plan: All applicants should answer. Accountability Courts, new and existing, should begin working towards sustainability upon the inception of the program. It is prudent for a court to consider various methods of funding in the event that grant funds are not available. Your sustainability plan, which may include an action plan to attain funding without the use of grant funds, should be fully described. "]

{"sheet":"Personnel Request","index":4,"n_rows":26,"n_cols":14,"rows_kept":26,"cut":false,"hidden":false,"merged":[[1,1,1,7],[3,1,3,7]]}
[]
[null,"Personnel Request"]
[]
[null,"Instructions: Please report the Weeks and Hours worked only for the percentage of time that you are requesting. That is, if a staff member is full time, but you are only requesting a portion of their salary, report only the hours and weeks for which you are requesting funds. Benefits will be calculated based on the salary amount requested. If a position title is not available in the drop down list, this is not an allowable position with CACJ grant funds. Please remember to update your Matched Funds on the General Information page to represent Total Personnel Funding for your court. "]
[null,null,null,null,null,null,null,null,null,null,"Select One: "]
[null,null,"Position Title ","Hours per Week","Hourly Rate","Weeks Requested","Total Salary Requested",null,null,null,"Clinical Case Manager"]
[null,null,null,null,null,null,null,null,null,null,"Counselor"]
[null,1,"Select One: ",null,null,null,{"$f":"D8*E8*F8","v":0},null,null,null,"Lab Technician/ Drug Screen Collector"]
[null,null,null,null,null,null,null,null,null,null,"Law Enforcement/ Surveillance Officer"]
[null,2,"Select One: ",null,null,null,{"$f":"D10*E10*F10","v":0},null,null,null,"Nurse Practitioner"]
[null,null,null,null,null,null,null,null,null,null,"Program Case Manager"]
[null,3,"Select One: ",null,null,null,{"$f":"D12*E12*F12","v":0},null,null,null,"Program Coordinator"]
[null,null,null,null,null,null,null,null,null,null,"Psychiatrist/ Physician"]
[null,4,"Select One: ",null,null,null,{"$f":"D14*E14*F14","v":0}]
[null,null,null,null,null,null,null,null,null,null,"Select One: "]
[null,5,"Select One: ",null,null,null,{"$f":"D16*E16*F16","v":0},null,null,null,"FICA"]
[null,null,null,null,null,null,null,null,null,null,"Health Insurance"]
[null,6,"Select One: ",null,null,null,{"$f":"D18*E18*F18","v":0},null,null,null,"Unemployment Insurance"]
[null,null,null,null,null,null,null,null,null,null,"Other"]
[null,7,"Select One: ",null,null,null,{"$f":"D20*E20*F20","v":0},null,null,null,"Total Salary",{"$f":"SUM(G8,G10,G12,G14,G18,G18,G20,G22,G24,G26,G16)","v":0},"Total Personnel",{"$f":"SUM(L20:L21)","v":0}]
[null,null,null,null,null,null,null,null,null,null,"Total Benefits",{"$f":"SUM('Fringe Benefits'!H9,'Fringe Benefits'!H12,'Fringe Benefits'!H15,'Fringe Benefits'!H18,'Fringe Benefits'!H21,'Fringe Benefits'!H24,'Fringe Benefits'!H27,'Fringe Benefits'!H30,'Fringe Benefits'!H33,'Fringe Benefits'!H36)","v":0}]
[null,8,"Select One: ",null,null,null,{"$f":"D22*E22*F22","v":0}]
[]
[null,9,"Select One: ",null,null,null,{"$f":"D24*E24*F24","v":0}]
[]
[null,10,"Select One: ",null,null,null,{"$f":"D26*E26*F26","v":0}]

{"sheet":"Fringe Benefits","index":5,"n_rows":36,"n_cols":14,"rows_kept":36,"cut":false,"hidden":false,"merged":[[1,1,1,7],[3,1,3,7]]}
[]
[null,"Fringe Benefits"]
[]
[null,"Instructions: Please report the type of fringe benefits that you are requesting per personnel along with the amount requested per benefit requested. The 'Total Anticiapted Cost' will be calculated based on the 'Benefit Amount(s)' requested. Note: 2017 FICA tax rate is 7.65%. Please use this percentage when calculating 'Benefit Amount' for FICA. Please remember to update your Matched Funds on the General Information page to represent Total Personnel Funding for your court. "]
[null,null,null,null,null,null,null,null,null,null,"Select One: "]
[null,null,"Fringe Benefits","Benefit Requested","Benefit Amount","Benefit Requested","Benefit Amount","Total Anticipated Cost",null,null,"Clinical Case Manager"]
[null,null,null,null,null,null,null,null,null,null,"Counselor"]
[null,1,{"$f":"'Personnel Request'!C8","v":"Select One: "},"Select One: ",null,"Select One: ",null,null,null,null,"Lab Technician/ Drug Screen Collector"]
[null,null,null,"Select One: ",null,"Select One: ",null,{"$f":"SUM(E8,E9,G8,G9)","v":0},null,null,"Law Enforcement/ Surveillance Officer"]
[null,null,null,null,null,null,null,null,null,null,"Nurse Practitioner"]
[null,2,{"$f":"'Personnel Request'!C10","v":"Select One: "},"Select One: ",null,"Select One: ",null,null,null,null,"Program Case Manager"]
[null,null,null,"Select One: ",null,"Select One: ",null,{"$f":"SUM(E11,E12,G11,G12)","v":0},null,null,"Program Coordinator"]
[null,null,null,null,null,null,null,null,null,null,"Psychiatrist/ Physician"]
[null,3,{"$f":"'Personnel Request'!C12","v":"Select One: "},"Select One: ",null,"Select One: "]
[null,null,null,"Select One: ",null,"Select One: ",null,{"$f":"SUM(E14,E15,G14,G15)","v":0},null,null,"Select One: "]
[null,null,null,null,null,null,null,null,null,null,"FICA"]
[null,4,{"$f":"'Personnel Request'!C14","v":"Select One: "},"Select One: ",null,"Select One: ",null,null,null,null,"Health Insurance"]
[null,null,null,"Select One: ",null,"Select One: ",null,{"$f":"SUM(E17,E18,G17,G18)","v":0},null,null,"Unemployment Insurance"]
[null,null,null,null,null,null,null,null,null,null,"Other"]
[null,5,{"$f":"'Personnel Request'!C16","v":"Select One: "},"Select One: ",null,"Select One: ",null,null,null,null,"Total Salary",{"$f":"SUM('Personnel Request'!G8,'Personnel Request'!G10,'Personnel Request'!G12,'Personnel Request'!G14,'Personnel Request'!G16,'Personnel Request'!G18,'Personnel Request'!G20,'Personnel Request'!G22,'Personnel Request'!G24,'Personnel Request'!G26)","v":0},"Total Personnel",{"$f":"SUM(L20:L21)","v":0}]
[null,null,null,"Select One: ",null,"Select One: ",null,{"$f":"SUM(E20,E21,G20,G21)","v":0},null,null,"Total Benefits",{"$f":"SUM(H9,H12,H15,H18,H21,H24,H27,H30,H33,H36)","v":0}]
[]
[null,6,{"$f":"'Personnel Request'!C18","v":"Select One: "},"Select One: ",null,"Select One: "]
[null,null,null,"Select One: ",null,"Select One: ",null,{"$f":"SUM(E23,E24,G23,G24)","v":0}]
[]
[null,7,{"$f":"'Personnel Request'!C20","v":"Select One: "},"Select One: ",null,"Select One: "]
[null,null,null,"Select One: ",null,"Select One: ",null,{"$f":"SUM(E26,E27,G26,G27)","v":0}]
[]
[null,8,{"$f":"'Personnel Request'!C22","v":"Select One: "},"Select One: ",null,"Select One: "]
[null,null,null,"Select One: ",null,"Select One: ",null,{"$f":"SUM(E29,E30,G29,G30)","v":0}]
[]
[null,9,{"$f":"'Personnel Request'!C24","v":"Select One: "},"Select One: ",null,"Select One: "]
[null,null,null,"Select One: ",null,"Select One: ",null,{"$f":"SUM(E32,E33,G32,G33)","v":0}]
[]
[null,10,{"$f":"'Personnel Request'!C26","v":"Select One: "},"Select One: ",null,"Select One: "]
[null,null,null,"Select One: ",null,"Select One: ",null,{"$f":"SUM(E35,E36,G35,G36)","v":0}]

{"sheet":"Contract Services Request","index":6,"n_rows":38,"n_cols":14,"rows_kept":38,"cut":false,"hidden":false,"merged":[[1,3,1,7],[3,3,3,7]]}
[]
[null,null,null,"Contract Personnel Services Request"]
[null,null,null,null,null,null,null,null,null,null,null,"Select One: ",null,"Select One: "]
[null,null,null,"Instructions: Contract Personnel are those for whom you are not paying fringe benefits. These may be treatment providers, surveillance personnel , life skills programming providers or other professionals. Only include the number of hours or units you are asking the CACJ to fund. Please remember to update your Matched Funds on the General Information page to represent Total  Contract Personnel Funding for your court. ",null,null,null,null,null,null,null,"Clinical Case Manager",null,"CSB"]
[null,null,null,null,null,null,null,null,null,null,null,"Counselor",null,"non-CSB"]
[null,null,"Position Title","Rate Unit","Rate per Unit","Total Units Requested ","Anticipated Number of Participants you will be able to serve per rate you choose","Provider Type","Requested Cost",null,null,"Lab Technician/ Drug Screen Collector"]
[null,null,null,null,null,null,null,null,null,null,null,"Law Enforcement/ Surveillance Officer",null,"Select One: "]
[null,1,"Select One: ","Select One: ",0,null,null,"Select One: ",{"$f":"SUM(E8*F8)","v":0},null,null,"Nurse Practitioner",null,"per Participant"]
[null,null,null,null,null,null,null,null,null,null,null,"Program Case Manager",null,"per Hour"]
[null,2,"Select One: ","Select One: ",0,null,null,"Select One: ",{"$f":"SUM(E10*F10)","v":0},null,null,"Program Coordinator",null,"per Session"]
[null,null,null,null,null,null,null,null,null,null,null,"Psychiatrist/ Physician",null,"per Month"]
[null,3,"Select One: ","Select One: ",0,null,null,"Select One: ",{"$f":"SUM(E12*F12)","v":0}]
[]
[null,4,"Select One: ","Select One: ",0,null,null,"Select One: ",{"$f":"SUM(E14*F14)","v":0},null,null,"Total Contract",{"$f":"SUM(I8,I10,I12,I14,I16,I18,I20,I22,I24,I26,I28,I30,I32,I34,I36,I38)","v":0}]
[]
[null,5,"Select One: ","Select One: ",0,null,null,"Select One: ",{"$f":"SUM(E16*F16)","v":0}]
[]
[null,6,"Select One: ","Select One: ",0,null,null,"Select One: ",{"$f":"SUM(E18*F18)","v":0}]
[]
[null,7,"Select One: ","Select One: ",0,null,null,"Select One: ",{"$f":"SUM(E20*F20)","v":0}]
[]
[null,8,"Select One: ","Select One: ",0,null,null,"Select One: ",{"$f":"SUM(E22*F22)","v":0}]
[]
[null,9,"Select One: ","Select One: ",0,null,null,"Select One: ",{"$f":"SUM(E24*F24)","v":0}]
[]
[null,10,"Select One: ","Select One: ",0,null,null,"Select One: ",{"$f":"SUM(E26*F26)","v":0}]
[]
[null,11,"Select One: ","Select One: ",0,null,null,"Select One: ",{"$f":"SUM(E28*F28)","v":0}]
[]
[null,12,"Select One: ","Select One: ",0,null,null,"Select One: ",{"$f":"SUM(E30*F30)","v":0}]
[]
[null,13,"Select One: ","Select One: ",0,null,null,"Select One: ",{"$f":"SUM(E32*F32)","v":0}]
[]
[null,14,"Select One: ","Select One: ",0,null,null,"Select One: ",{"$f":"SUM(E34*F34)","v":0}]
[]
[null,15,"Select One: ","Select One: ",0,null,null,"Select One: ",{"$f":"SUM(E36*F36)","v":0}]
[]
[null,16,"Select One: ","Select One: ",0,null,null,"Select One: ",{"$f":"SUM(E38*F38)","v":0}]

{"sheet":"Drug Testing Supplies","index":7,"n_rows":47,"n_cols":14,"rows_kept":47,"cut":false,"hidden":false,"merged":[[1,1,1,7],[3,1,3,7],[26,1,26,4]]}
[]
[null,"Drug Testing Supplies",null,null,null,null,null,null,null,null,"Select One: "]
[null,null,null,null,null,null,null,null,null,null,"Latex Gloves",null,"Consummables",{"$f":"SUM(F8,F10,F12)","v":0}]
[null,"Instructions: Drug Testing Supplies are divided into Consumables (NOT instant tests), Monitoring Equipment, Confirmation or Lab Test, Onsite Devices (Instant Tests go here), and Reagents (separate tab).  Onsite Devices are considered to be instant tests.  Consumables are items such as: collection ONLY cups (NOT instant tests), gloves, and water.  For each section, select the item you wish to purchase from the first column and then the appropriate units you typically purchase for that item. The item and units are provided in dropdown menus. Enter in the cost per unit and the number of units for which you are requesting CACJ funding. The total amount requested will automatically calculate based on your selections. For Confirmation/Lab Testing, Onsite Devices, and Reagents, please also select the company from which you intend to purchase. Please remember to update your Matched Funds on the General Information page to represent Total  Drug Testing Supplies Funding for your court. ",null,null,null,null,null,null,null,null,"Water",null,"Monitoring Equipment",{"$f":"SUM(F17,F19,F21,F23)","v":0}]
[null,null,null,null,null,null,null,null,null,null,"Urine Collection Cups",null,"Confirmation Testing",{"$f":"SUM(E29,E31,E33,E35)","v":0}]
[null,"Consummables","Unit","Cost per Unit","Total units Requested","Total Amount Requested",null,null,null,null,"Other",null,"On-Site",{"$f":"SUM(H41,H43,H45,H47)","v":0}]
[null,null,null,null,null,null,null,null,null,null,"Select One: ",null,"Reagents",{"$f":"SUM('Reagents Drug Supplies'!H9,'Reagents Drug Supplies'!H11,'Reagents Drug Supplies'!H13,'Reagents Drug Supplies'!H15,'Reagents Drug Supplies'!H17,'Reagents Drug Supplies'!H19,'Reagents Drug Supplies'!H21,'Reagents Drug Supplies'!H23,'Reagents Drug Supplies'!H27,'Reagents Drug Supplies'!H29,'Reagents Drug Supplies'!H31,'Reagents Drug Supplies'!H33,'Reagents Drug Supplies'!H35,'Reagents Drug Supplies'!H37,'Reagents Drug Supplies'!H39,'Reagents Drug Supplies'!H41)","v":0}]
[null,"Select One: ","Select One: ",0,null,{"$f":"SUM(D8*E8)","v":0},null,null,null,null,"Box",null,"Drug Testing Supplies",{"$f":"SUM(N3:N7)","v":0}]
[null,null,null,null,null,null,null,null,null,null,"Cup"]
[null,"Select One: ","Select One: ",0,null,{"$f":"SUM(D10*E10)","v":0},null,null,null,null,"Gallon"]
[null,null,null,null,null,null,null,null,null,null,"Item"]
[null,"Select One: ","Select One: ",0,null,{"$f":"SUM(D12*E12)","v":0},null,null,null,null,"Patch"]
[null,null,null,null,null,null,null,null,null,null,"Stick"]
[null,null,null,null,null,null,null,null,null,null,"Swab"]
[null,"Monitoring Equipment (Select Type)","Unit","Cost per Unit","Total Units Requested","Total Amount Requested",null,null,null,null,"Test"]
[]
[null,"Select One:","Select One: ",0,null,{"$f":"D17*E17","v":0},null,null,null,null,"Select One:",null,"Select One:","Select One:"]
[null,null,null,null,null,null,null,null,null,null,"Continuous Alcohol Monitoring Devices",null,"Barbiturates","Quaaludes"]
[null,"Select One:","Select One: ",0,null,{"$f":"D19*E19","v":0},null,null,null,null,"Remote Breathylzer",null,"Burprenorphine","Ecstasy/MDMA"]
[null,null,null,null,null,null,null,null,null,null,"Electronic Ankle Monitors",null,"Cocaine/Crack","Ketamine"]
[null,"Select One:","Select One: ",0,null,{"$f":"D21*E21","v":0},null,null,null,null,"Ignition Interlock Devices",null,"ETG","LSD"]
[null,null,null,null,null,null,null,null,null,null,null,null,"Methadone","Rophynol"]
[null,"Select One:","Select One: ",0,null,{"$f":"D23*E23","v":0},null,null,null,null,"Select One:",null,"Methamphetamine","Steriods"]
[null,null,null,null,null,null,null,null,null,null,"AverTest","Panels Tested","Opiates","Synthetic Cannabinoids (K2/Spice)"]
[null,null,null,null,null,null,null,null,null,null,"Discover",1,"Percoset/Oxycodone","Synthetic Stimulants (BathSalts)"]
[null,"Confirmation Test or In-House Lab Test","Average Cost per Test","No. Tests Requested","Total Amount Requested",null,null,null,null,null,"eLab",2,"Propoxyphene","Tryptamines (Psilocybin)"]
[null,"For the section on Confirmation Testing, please select the company to which you send tests. ",null,null,null,null,null,null,null,null,"In House Lab Tests",3,"THC","Inhalents"]
[null,null,null,null,null,null,null,null,null,null,"Noble Chemical",4,"Other","Kratom"]
[null,"Select One:",0,null,{"$f":"C29*D29","v":0},null,null,null,null,null,"OneScreen",5,null,"Other"]
[null,null,null,null,null,null,null,null,null,null,"OraTect",6]
[null,"Select One:",0,null,{"$f":"C31*D31","v":0},null,null,null,null,null,"Other",7]
[null,null,null,null,null,null,null,null,null,null,"Redwood",8]
[null,"Select One:",0,null,{"$f":"C33*D33","v":0},null,null,null,null,null,"Reveal",9]
[null,null,null,null,null,null,null,null,null,null,"Seimens",10]
[null,"Select One:",0,null,{"$f":"C35*D35","v":0},null,null,null,null,null,"ThermoFisher",11]
[null,null,null,null,null,null,null,null,null,null,"UsDiagnostics",12]
[null,null,null,null,null,null,null,null,null,null,null,13]
[null,null,null,null,null,null,null,null,null,null,"Select One:",14]
[null,"Onsite Devices (type)","Company Used","Panels Tested","Cost per Unit","Units","Total Units Requested","Total Request",null,null,"Testing Sticks",15]
[null,null,null,null,null,null,null,null,null,null,"Cups"]
[null,"Select One:","Select One:","Panels Tested",0,"Select One: ",null,{"$f":"SUM(E41*G41)","v":0},null,null,"Swabs"]
[null,null,null,null,null,null,null,null,null,null,"Patches"]
[null,"Select One:","Select One:","Panels Tested",0,"Select One: ",null,{"$f":"SUM(E43*G43)","v":0}]
[]
[null,"Select One:","Select One:","Panels Tested",0,"Select One: ",null,{"$f":"SUM(E45*G45)","v":0}]
[]
[null,"Select One:","Select One:","Panels Tested",0,"Select One: ",null,{"$f":"SUM(E47*G47)","v":0}]

{"sheet":"Reagents Drug Supplies","index":8,"n_rows":41,"n_cols":14,"rows_kept":41,"cut":false,"hidden":false,"merged":[[1,1,1,7],[3,1,3,7]]}
[]
[null,"Reagents Drug Testing Supplies",null,null,null,null,null,null,null,null,"Select One: "]
[null,null,null,null,null,null,null,null,null,null,"Latex Gloves",null,"Consummables",{"$f":"SUM('Drug Testing Supplies'!F8,'Drug Testing Supplies'!F10,'Drug Testing Supplies'!F12)","v":0}]
[null,"Instructions: This section is for reagents drug test supplies only. For each section, select the item you wish to purchase from the first column and then the appropriate units you typically purchase for that item. The item and units are provided in dropdown menus. Enter in the cost per unit and the number of units for which you are requesting CACJ funding. The total amount requested will automatically calculate bsed on your selections. Please also select the company from which you intend to purchase. Please remember to update your Matched Funds on the General Information page to represent Total  Drug Testing Supplies Funding for your court. ",null,null,null,null,null,null,null,null,"Water",null,"Monitoring Equipment",{"$f":"SUM('Drug Testing Supplies'!F17,'Drug Testing Supplies'!F19,'Drug Testing Supplies'!F21,'Drug Testing Supplies'!F23)","v":0}]
[null,null,null,null,null,null,null,null,null,null,"Urine Collection Cups",null,"Confirmation Testing",{"$f":"SUM('Drug Testing Supplies'!E29,'Drug Testing Supplies'!E31,'Drug Testing Supplies'!E33,'Drug Testing Supplies'!E35)","v":0}]
[null,"Reagents(Select Drug Type)","Company Used","Cost per Unit","Units","Units Per Box","Total Units Requested","Total Request",null,null,"Other",null,"On-Site",{"$f":"SUM('Drug Testing Supplies'!H41,'Drug Testing Supplies'!H43,'Drug Testing Supplies'!H45,'Drug Testing Supplies'!H47)","v":0}]
[null,"Typical Drugs",null,null,null,null,null,null,null,null,"Select One: ",null,"Reagents",{"$f":"SUM(H9,H11,H13,H15,H17,H19,H21,H23,H27,H29,H31,H33,H35,H37,H39,H41)","v":0}]
[null,null,null,null,null,null,null,null,null,null,"Box",null,"Drug Testing Supplies",{"$f":"SUM(N3:N7)","v":0}]
[null,"Select One:","Select One:",0,"Select One: ",null,null,{"$f":"D9*G9","v":0},null,null,"Test"]
[]
[null,"Select One:","Select One:",0,"Select One: ",null,null,{"$f":"D11*G11","v":0}]
[]
[null,"Select One:","Select One:",0,"Select One: ",null,null,{"$f":"D13*G13","v":0}]
[]
[null,"Select One:","Select One:",0,"Select One: ",null,null,{"$f":"D15*G15","v":0}]
[]
[null,"Select One:","Select One:",0,"Select One: ",null,null,{"$f":"D17*G17","v":0},null,null,"Select One:",null,"Select One:","Select One:"]
[null,null,null,null,null,null,null,null,null,null,"Continuous Alcohol Monitoring Devices",null,"Barbiturates","Quaaludes"]
[null,"Select One:","Select One:",0,"Select One: ",null,null,{"$f":"D19*G19","v":0},null,null,"Remote Breathylzer",null,"Burprenorphine","Ecstasy/MDMA"]
[null,null,null,null,null,null,null,null,null,null,"Electronic Ankle Monitors",null,"Cocaine/Crack","Ketamine"]
[null,"Select One:","Select One:",0,"Select One: ",null,null,{"$f":"D21*G21","v":0},null,null,"Ignition Interlock Devices",null,"ETG","LSD"]
[null,null,null,null,null,null,null,null,null,null,null,null,"Methadone","Rophynol"]
[null,"Select One:","Select One:",0,"Select One: ",null,null,{"$f":"D23*G23","v":0},null,null,"Select One:",null,"Methamphetamine","Steriods"]
[null,null,null,null,null,null,null,null,null,null,"AverTest","Panels Tested","Opiates","Synthetic Cannabinoids (K2/Spice)"]
[null,"Synthetic/Designer Drugs",null,null,null,null,null,null,null,null,"Discover",1,"Percoset/Oxycodone","Synthetic Stimulants (BathSalts)"]
[null,null,null,null,null,null,null,null,null,null,"eLab",2,"Propoxyphene","Tryptamines (Psilocybin)"]
[null,"Select One:","Select One:",0,"Select One: ",null,null,{"$f":"D27*G27","v":0},null,null,"Noble Chemical",3,"THC","Inhalents"]
[null,null,null,null,null,null,null,null,null,null,"OneScreen",4,"Other","Kratom"]
[null,"Select One:","Select One:",0,"Select One: ",null,null,{"$f":"D29*G29","v":0},null,null,"OraTect",5,null,"Other"]
[null,null,null,null,null,null,null,null,null,null,"Other",6]
[null,"Select One:","Select One:",0,"Select One: ",null,null,{"$f":"D31*G31","v":0},null,null,"Redwood",7]
[null,null,null,null,null,null,null,null,null,null,"Reveal",8]
[null,"Select One:","Select One:",0,"Select One: ",null,null,{"$f":"D33*G33","v":0},null,null,"Seimens",9]
[null,null,null,null,null,null,null,null,null,null,"ThermoFisher",10]
[null,"Select One:","Select One:",0,"Select One: ",null,null,{"$f":"D35*G35","v":0},null,null,"UsDiagnostics",11]
[null,null,null,null,null,null,null,null,null,null,null,12]
[null,"Select One:","Select One:",0,"Select One: ",null,null,{"$f":"D37*G37","v":0},null,null,"Select One:",13]
[null,null,null,null,null,null,null,null,null,null,"Testing Sticks",14]
[null,"Select One:","Select One:",0,"Select One: ",null,null,{"$f":"D39*G39","v":0},null,null,"Cups",15]
[null,null,null,null,null,null,null,null,null,null,"Swabs"]
[null,"Select One:","Select One:",0,"Select One: ",null,null,{"$f":"D41*G41","v":0},null,null,"Patches"]

{"sheet":"Other Costs","index":9,"n_rows":18,"n_cols":9,"rows_kept":18,"cut":false,"hidden":false,"merged":[[1,1,1,4],[3,1,3,4]]}
[]
[null,"All Other Costs"]
[]
[null,"Cost is less than $5,000. Please include all other costs here. Other costs may include: medications for participants, housing/relocation assistance, rent, teleconference cost, internet, etc.Please remember to update your Matched Funds on the General Information page to represent Total  All Non-Drug Testing Supplies Funding for your court. "]
[null,null,null,null,null,null,null,"Non-Drug",{"$f":"SUM(E8,E10,E12,E14,E16,E18)","v":0}]
[null,"Other Costs Type","Cost per Unit","Total Units Requested","Total Requested Amount"]
[]
[null,null,0,null,{"$f":"C8*D8","v":0}]
[]
[null,null,0,null,{"$f":"C10*D10","v":0}]
[]
[null,null,0,null,{"$f":"C12*D12","v":0}]
[]
[null,null,0,null,{"$f":"C14*D14","v":0}]
[]
[null,null,0,null,{"$f":"C16*D16","v":0}]
[]
[null,null,0,null,{"$f":"C18*D18","v":0}]

{"sheet":"Equipment","index":10,"n_rows":26,"n_cols":10,"rows_kept":26,"cut":false,"hidden":false,"merged":[[1,2,1,5],[3,2,3,5]]}
[]
[null,null,"Equipment"]
[]
[null,null,"Per Unit Cost is Greater than $5000. Please remember to update your Matched Funds on the General Information page to represent Total  Equipment Funding for your court. ",null,null,null,null,null,"Equipment",{"$f":"SUM(F8,F10,F12,F14,F16,F18,F20,F22,F24,F26)","v":0}]
[]
[null,null,"Equipment Type","Cost per Unit","Total Units Requested","Total Requested Amount"]
[]
[null,1,null,0,null,{"$f":"D8*E8","v":0}]
[]
[null,2,null,0,null,{"$f":"D10*E10","v":0}]
[]
[null,3,null,0,null,{"$f":"D12*E12","v":0}]
[]
[null,4,null,0,null,{"$f":"D14*E14","v":0}]
[]
[null,5,null,0,null,{"$f":"D16*E16","v":0}]
[]
[null,6,null,0,null,{"$f":"D18*E18","v":0}]
[]
[null,7,null,0,null,{"$f":"D20*E20","v":0}]
[]
[null,8,null,null,null,{"$f":"D22*E22","v":0}]
[]
[null,9,null,0,null,{"$f":"D24*E24","v":0}]
[]
[null,10,null,0,null,{"$f":"D26*E26","v":0}]

{"sheet":"CACJ Conference Budget","index":11,"n_rows":0,"n_cols":0,"rows_kept":0,"cut":false,"hidden":false,"merged":[],"read":"part_too_large"}

{"sheet":"Training & Travel","index":12,"n_rows":27,"n_cols":20,"rows_kept":27,"cut":false,"hidden":false,"merged":[[1,2,1,9],[3,2,3,9],[5,2,5,8]]}
[]
[null,null,"Training & Travel"]
[]
[null,null,"Instructions: Fully describe your matched funds (to include calculations) in the narrative section below.  Please remember to update your Matched Funds on the General Information page to represent Total Training and Travel Funding for your court.  Other In-State Training and Travel Requests should be requested in accordance with the State of Georgia Statewide Travel Regulations Funds for the CACJ provided training do NOT need to be applied for-the CACJ cover these costs directly. Please remember to update your Matched Funds on the General Information page to represent Total  Training and Travel Funding for your court. "]
[null,null,null,null,null,null,null,null,null,null,null,null,null,null,null,"CACJ Training",{"$f":"'CACJ Conference Budget'!O5","v":0}]
[null,null,"Other In-State Training or Travel Requests",null,null,null,null,null,null,null,null,null,null,null,null,"In-State",{"$f":"SUM(I9,I11,I13,I15,I17,I19,I21,I23,I25,I27)","v":0}]
[null,null,"Attendee Name","Mileage (roundtrip)","Location","No. Travel Days","No. Training Days","No. Hotel Nights","Total Anticipated Cost",null,null,null,null,null,null,"Total T&T",{"$f":"SUM(Q5:Q6)","v":0}]
[null,null,null,null,null,null,null,null,null,null,null,null,null,null,null,null,"Hotel","MIE","TravelDays","Mileage"]
[null,1,null,null,null,null,null,null,{"$f":"SUM((D9*$T$10)+(F9*$S$10)+(G9*$R$10)+(H9*$Q$10))","v":0},null,null,null,null,null,null,"Select One:",0,0,0,0]
[null,null,null,null,null,null,null,null,null,null,null,null,null,null,null,"Athens",135,28,21,0.53500000000000003]
[null,2,null,null,null,null,null,null,{"$f":"SUM((D11*$T$10)+(F11*$S$10)+(G11*$R$10)+(H11*$Q$10))","v":0},null,null,null,null,null,null,"Peachtree City",91,28,21]
[null,null,null,null,null,null,null,null,null,null,null,null,null,null,null,"Atlanta",135,28,27]
[null,3,null,null,null,null,null,null,{"$f":"SUM((D13*$T$10)+(F13*$S$10)+(G13*$R$10)+(H13*$Q$10))","v":0},null,null,null,null,null,null,"Macon",91,28,21]
[]
[null,4,null,null,null,null,null,null,{"$f":"SUM((D15*$T$10)+(F15*$S$10)+(G15*$R$10)+(H15*$Q$10))","v":0}]
[]
[null,5,null,null,null,null,null,null,{"$f":"SUM((D17*$T$10)+(F17*$S$10)+(G17*$R$10)+(H17*$Q$10))","v":0}]
[]
[null,6,null,null,null,null,null,null,{"$f":"SUM((D19*$T$10)+(F19*$S$10)+(G19*$R$10)+(H19*$Q$10))","v":0}]
[]
[null,7,null,null,null,null,null,null,{"$f":"SUM((D21*$T$10)+(F21*$S$10)+(G21*$R$10)+(H21*$Q$10))","v":0}]
[]
[null,8,null,null,null,null,null,null,{"$f":"SUM((D23*$T$10)+(F23*$S$10)+(G23*$R$10)+(H23*$Q$10))","v":0}]
[]
[null,9,null,null,null,null,null,null,{"$f":"SUM((D25*$T$10)+(F25*$S$10)+(G25*$R$10)+(H25*$Q$10))","v":0}]
[]
[null,10,null,null,null,null,null,null,{"$f":"SUM((D27*$T$10)+(F27*$S$10)+(G27*$R$10)+(H27*$Q$10))","v":0}]

{"sheet":"Transportation Narrative","index":13,"n_rows":134,"n_cols":10,"rows_kept":134,"cut":false,"hidden":false,"merged":[[9,1,9,2],[9,3,9,6],[11,1,11,6],[23,1,23,6],[1,1,1,6],[3,1,3,6],[5,1,5,2],[5,3,5,6],[7,1,7,2],[7,3,7,6]]}
[]
[null,"Transportation Narrative",null,null,null,null,null,null,null,"Select All Applicable Courts:"]
[null,null,null,null,null,null,null,null,null,"Alapaha Circuit Drug Court"]
[null,"All applicants should fill out the following if your court is seeking transportation grant funds. Transportation projects include things such as partnerships with the Department of Community Supervision or local Sheriff's office to provide transportation to/from court or treatment services. Transportation vouchers (such as bus or train passes) may be requested. Transportation grant funds will not be allowed to be used for: vehicles, gas cards, or incentives. Funding requests for this budget detail can be shared among multiple courts. The funds will be applied to the application in which the questions and Budget Detail are completed. ",null,null,null,null,null,null,null,"Appalachian Judicial Circuit Drug Court"]
[null,null,null,null,null,null,null,null,null,"Appalachian Judicial Circuit Veterans"]
[null,"If you are applying for multiple courts, please list the courts. ",null,null,null,null,null,null,null,"Appalachian Judicial FDTC"]
[null,null,null,null,null,null,null,null,null,"Appalachian Judicial Mental Health Drug Court"]
[null,"How many participants do you anticipate will participate in your proposed transportation project (from July 1, 2018 - June 30, 2019)? If you are applying for multiple courts, please list the court name then the number of participants. ",null,null,null,null,null,null,null,"Appalachian Juvenile Court"]
[null,null,null,null,null,null,null,null,null,"Athens - Clarke County DUI Court"]
[null,"How many new participants will your court add if the the proposed transportation project is funded? If you are applying for multiple courts, please list the court name then the number of participants. ",null,null,null,null,null,null,null,"Athens-Clarke County Treatment and Accountability Court"]
[null,null,null,null,null,null,null,null,null,"Athens-Clarke FDTC"]
[null,"Please fully describe your proposed transportation project. Include why the project is needed and cannot be funded by other sources. ",null,null,null,null,null,null,null,"Atlantic Judicial Circuit Drug Court"]
[null,null,null,null,null,null,null,null,null,"Atlantic Judicial Circuit Veterans"]
[null,null,null,null,null,null,null,null,null,"Augusta Judicial Circuit Drug Court"]
[null,null,null,null,null,null,null,null,null,"Augusta Judicial Circuit Mental Health Court"]
[null,null,null,null,null,null,null,null,null,"Augusta Judicial Circuit Veterans Court"]
[null,null,null,null,null,null,null,null,null,"Baldwin County FDTC"]
[null,null,null,null,null,null,null,null,null,"Barrow County Adult Felony Drug Court"]
[null,null,null,null,null,null,null,null,null,"Bibb County Mental Health Court"]
[null,null,null,null,null,null,null,null,null,"Blue Ridge Judicial Circuit Drug Court"]
[null,null,null,null,null,null,null,null,null,"Bulloch County Accountability Court"]
[null,null,null,null,null,null,null,null,null,"Carroll County Drug Court"]
[null,null,null,null,null,null,null,null,null,"Chatham County DUI Court"]
[null,"If there are any additional items regarding your transportation program, please include them in the space below. ",null,null,null,null,null,null,null,"Chatham-Savannah Veterans Treatment Court"]
[null,null,null,null,null,null,null,null,null,"Cherokee County DUI Court"]
[null,null,null,null,null,null,null,null,null,"Cherokee County MISD Court"]
[null,null,null,null,null,null,null,null,null,"Clayton County Drug Court"]
[null,null,null,null,null,null,null,null,null,"Clayton County DUI Court"]
[null,null,null,null,null,null,null,null,null,"Cobb County Drug Court"]
[null,null,null,null,null,null,null,null,null,"Cobb County DUI Court"]
[null,null,null,null,null,null,null,null,null,"Cobb County FDTC"]
[null,null,null,null,null,null,null,null,null,"Cobb County Juvenile Court"]
[null,null,null,null,null,null,null,null,null,"Cobb County Mental Health Court"]
[null,null,null,null,null,null,null,null,null,"Cobb County Veterans Court"]
[null,null,null,null,null,null,null,null,null,"Colquitt SA/MH Court"]
[null,null,null,null,null,null,null,null,null,"Conasauga Drug Court"]
[null,null,null,null,null,null,null,null,null,"Coweta County Adult Felony Drug Court"]
[null,null,null,null,null,null,null,null,null,"Coweta County DUI Court"]
[null,null,null,null,null,null,null,null,null,"Coweta County FDTC"]
[null,null,null,null,null,null,null,null,null,"Coweta County Veterans Court"]
[null,null,null,null,null,null,null,null,null,"Crisp County Adult Felony Drug Court"]
[null,null,null,null,null,null,null,null,null,"Dawson County HELP Court"]
[null,null,null,null,null,null,null,null,null,"Dawson County Treatment Court"]
[null,null,null,null,null,null,null,null,null,"DeKalb County Drug Court"]
[null,null,null,null,null,null,null,null,null,"DeKalb County DUI Court"]
[null,null,null,null,null,null,null,null,null,"DeKalb County Juvenile Court"]
[null,null,null,null,null,null,null,null,null,"DeKalb County Superior Mental Health Court"]
[null,null,null,null,null,null,null,null,null,"DeKalb County Veterans Court"]
[null,null,null,null,null,null,null,null,null,"DeKalb Juvenile Journey MH Court"]
[null,null,null,null,null,null,null,null,null,"Dougherty County MH/SA Court"]
[null,null,null,null,null,null,null,null,null,"Douglas Circuit Felony Accountability Court"]
[null,null,null,null,null,null,null,null,null,"Douglas County DUI Court"]
[null,null,null,null,null,null,null,null,null,"Douglas County FDTC"]
[null,null,null,null,null,null,null,null,null,"Dublin Mental Health/Veterans Court"]
[null,null,null,null,null,null,null,null,null,"Enotah Drug Court (North)"]
[null,null,null,null,null,null,null,null,null,"Enotah Drug Court (South)"]
[null,null,null,null,null,null,null,null,null,"Enotah FDTC"]
[null,null,null,null,null,null,null,null,null,"Enotah Mental Health Court"]
[null,null,null,null,null,null,null,null,null,"Fayette County DUI Court"]
[null,null,null,null,null,null,null,null,null,"Forsyth County Drug Court"]
[null,null,null,null,null,null,null,null,null,"Forsyth County DUI Court"]
[null,null,null,null,null,null,null,null,null,"Forsyth County Juvenile Court"]
[null,null,null,null,null,null,null,null,null,"Forsyth Mental Health Court"]
[null,null,null,null,null,null,null,null,null,"Fulton County Accountability Court"]
[null,null,null,null,null,null,null,null,null,"Fulton County DUI Court"]
[null,null,null,null,null,null,null,null,null,"Fulton County FDTC"]
[null,null,null,null,null,null,null,null,null,"Fulton County Juvenile Court"]
[null,null,null,null,null,null,null,null,null,"Fulton County Juvenile MH Court"]
[null,null,null,null,null,null,null,null,null,"Fulton County Mental Health Court"]
[null,null,null,null,null,null,null,null,null,"Fulton Veterans Court"]
[null,null,null,null,null,null,null,null,null,"Griffin Judicial Circuit Drug Court"]
[null,null,null,null,null,null,null,null,null,"Gwinnett County Drug Court"]
[null,null,null,null,null,null,null,null,null,"Gwinnett County DUI Court"]
[null,null,null,null,null,null,null,null,null,"Gwinnett County Mental Health Court"]
[null,null,null,null,null,null,null,null,null,"Gwinnett County Veterans Court"]
[null,null,null,null,null,null,null,null,null,"Gwinnett Juvenile Court"]
[null,null,null,null,null,null,null,null,null,"Hall County Adult Felony Court"]
[null,null,null,null,null,null,null,null,null,"Hall County DUI Court"]
[null,null,null,null,null,null,null,null,null,"Hall County Felony Probation Court"]
[null,null,null,null,null,null,null,null,null,"Hall County FTC"]
[null,null,null,null,null,null,null,null,null,"Hall County HELP Court"]
[null,null,null,null,null,null,null,null,null,"Hall County State veterans Court"]
[null,null,null,null,null,null,null,null,null,"Henry County Adult Felony Drug Court"]
[null,null,null,null,null,null,null,null,null,"Henry County DUI Court"]
[null,null,null,null,null,null,null,null,null,"Henry County Juvenile MH Court"]
[null,null,null,null,null,null,null,null,null,"Henry County Resource Court"]
[null,null,null,null,null,null,null,null,null,"Houston Mental Health Court"]
[null,null,null,null,null,null,null,null,null,"Jackson County Drug Court"]
[null,null,null,null,null,null,null,null,null,"Jefferson County Adult Drug Court"]
[null,null,null,null,null,null,null,null,null,"Liberty County DUI Court"]
[null,null,null,null,null,null,null,null,null,"Lowndes County DUI Court"]
[null,null,null,null,null,null,null,null,null,"Lowndes County Treatment Court"]
[null,null,null,null,null,null,null,null,null,"Macon - Bibb County Veterans Treatment Court"]
[null,null,null,null,null,null,null,null,null,"Macon-Bibb County Adult Drug Court"]
[null,null,null,null,null,null,null,null,null,"Mountain Judicial Circuit Drug Court"]
[null,null,null,null,null,null,null,null,null,"Mountain Judicial FTC"]
[null,null,null,null,null,null,null,null,null,"Muscogee County Adult Felony Drug Court"]
[null,null,null,null,null,null,null,null,null,"Muscogee County Juvenile Court"]
[null,null,null,null,null,null,null,null,null,"Muscogee County Mental Health Court"]
[null,null,null,null,null,null,null,null,null,"Muscogee County Veterans Court"]
[null,null,null,null,null,null,null,null,null,"Newton County Adult Felony Drug Court"]
[null,null,null,null,null,null,null,null,null,"Newton County Veterans Court"]
[null,null,null,null,null,null,null,null,null,"Newton Juvenile Court"]
[null,null,null,null,null,null,null,null,null,"Newton/Walton County Mental Health Court"]
[null,null,null,null,null,null,null,null,null,"Northern Circuit Drug Court"]
[null,null,null,null,null,null,null,null,null,"Ocmulgee Circuit ATCC MH Court"]
[null,null,null,null,null,null,null,null,null,"Ocmulgee Circuit ATCC: Substance Abuse Division"]
[null,null,null,null,null,null,null,null,null,"Pataula Judicial Circuit Drug Court"]
[null,null,null,null,null,null,null,null,null,"Paulding Circuit Drug Court"]
[null,null,null,null,null,null,null,null,null,"Piedmont Circuit Mental Health Court"]
[null,null,null,null,null,null,null,null,null,"Richmond County State Acct Court"]
[null,null,null,null,null,null,null,null,null,"Richmond County State Veterans Court"]
[null,null,null,null,null,null,null,null,null,"Rockdale County Adult Drug Court"]
[null,null,null,null,null,null,null,null,null,"Rockdale County DUI Court"]
[null,null,null,null,null,null,null,null,null,"Rockdale County Juvenile Court"]
[null,null,null,null,null,null,null,null,null,"Rockdale County Mental Health Court"]
[null,null,null,null,null,null,null,null,null,"Rome Circuit Mental Health Court"]
[null,null,null,null,null,null,null,null,null,"Savannah-Chatham County Drug Court"]
[null,null,null,null,null,null,null,null,null,"Savannah-Chatham Mental Health Court"]
[null,null,null,null,null,null,null,null,null,"South Georgia Judicial Circuit Drug Court"]
[null,null,null,null,null,null,null,null,null,"Southwestern Drug Court"]
[null,null,null,null,null,null,null,null,null,"Tallapoosa Circuit Drug Court"]
[null,null,null,null,null,null,null,null,null,"Tallapoosa Circuit Mental Health Court"]
[null,null,null,null,null,null,null,null,null,"Tift County Adult Felony Drug Court"]
[null,null,null,null,null,null,null,null,null,"Tift County DUI Court"]
[null,null,null,null,null,null,null,null,null,"Toombs Circuit Drug Court"]
[null,null,null,null,null,null,null,null,null,"Towaliga Accountability Court"]
[null,null,null,null,null,null,null,null,null,"Troup County Adult  Drug Court"]
[null,null,null,null,null,null,null,null,null,"Troup County Adult Mental Health Court"]
[null,null,null,null,null,null,null,null,null,"Troup County DUI/Drug Court"]
[null,null,null,null,null,null,null,null,null,"Waycross Judicial Circuit Drug Court"]
[null,null,null,null,null,null,null,null,null,"Western Judicial Circuit Drug Court"]
[null,null,null,null,null,null,null,null,null,"Western Judicial Circuit Veterans Court"]
[null,null,null,null,null,null,null,null,null,"NEW Implementation Court"]

{"sheet":"Transportation Request","index":14,"n_rows":18,"n_cols":13,"rows_kept":18,"cut":false,"hidden":false,"merged":[[1,1,1,6],[3,1,3,6]]}
[]
[null,"Transportation Request"]
[]
[null,"If you are requesting ANY transportation funding, you are required to complete the Transportation Narrative tab. If you do not complete this information, your transportation request may not be considered. Please remember to update your Matched Funds on the General Information page to represent Total  Transportation Funding for your court. "]
[]
[null,"Mode of Transportation/Cost Type Requested","Rate Unit","Rate per Unit selected (can be an average)","Total Units","Under Contract?","Total Amount Requested ",null,null,"Contract",null,"Transportation",{"$f":"SUM(G8,G10,G12,G14,G16,G18)","v":0}]
[null,null,null,null,null,null,null,null,null,"Yes"]
[null,"County Vehicle Mileage","Select One:",0,null,"Contract",{"$f":"D8*E8","v":0},null,null,"No"]
[]
[null,"Driver time (County Vehicle)","Select One:",0,null,"Contract",{"$f":"D10*E10","v":0},null,null,"Select One:"]
[null,null,null,null,null,null,null,null,null,"per Hour"]
[null,"Public Transportation","Select One:",0,null,"Contract",{"$f":"D12*E12","v":0},null,null,"per Passenger"]
[null,null,null,null,null,null,null,null,null,"per Trip"]
[null,"Private Transportation (Uber/Taxi)","Select One:",0,null,"Contract",{"$f":"D14*E14","v":0},null,null,"per Mile"]
[null,null,null,null,null,null,null,null,null,"per Pass/Token"]
[null,"Bike Share","Select One:",0,null,"Contract",{"$f":"D16*E16","v":0},null,null,"per Bike"]
[null,null,null,null,null,null,null,null,null,"Other"]
[null,"Other","Select One:",0,null,"Contract",{"$f":"D18*E18","v":0}]

{"sheet":"Court Narrative","index":15,"n_rows":22,"n_cols":11,"rows_kept":22,"cut":false,"hidden":false,"merged":[[13,4,13,6],[15,4,15,6],[17,4,17,6],[19,4,19,6],[21,1,21,6],[11,4,11,6],[1,1,1,6],[3,1,3,6],[5,4,5,6],[7,4,7,6],[9,4,9,6]]}
[]
[null,"Court Narrative"]
[null,null,null,null,null,null,null,null,null,null,"Select One: "]
[null,"Instructions: Use the Budget Priority section to indicate which of the items you requested in the budget detail take priority in your program. If the Funding Committee needs to make cuts, it may consider your program's preferences on this form. Please be sure to use the wording you used in the corresponding budget details tab. For example, if you requested personnel costs for a coordinator, surveillance officers, and a nurse, you should specify in the priority reasoning space which of these positions are most critical to your program. In the budget priority column, select the budget priority level for each section. Please do not select the same level twice. ",null,null,null,null,null,null,null,null,"First"]
[null,null,null,null,null,null,null,null,null,null,"Second"]
[null,null,null,"Budget Priority","Priority Reasoning",null,null,null,null,null,"Third"]
[null,null,null,null,null,null,null,null,null,null,"Fourth"]
[null,null,"Personnel","Select One: ",null,null,null,null,null,null,"Fifth "]
[null,null,null,null,null,null,null,null,null,null,"Sixth"]
[null,null,"Contract Services","Select One: ",null,null,null,null,null,null,"Seventh"]
[]
[null,null,"Drug Testing Supplies","Select One: "]
[]
[null,null,"Non-Drug Testing Supplies","Select One: "]
[]
[null,null,"Equipment","Select One: "]
[]
[null,null,"Training & Travel","Select One: "]
[]
[null,null,"Transportation ","Select One: "]
[]
[null,"Please fully,but concisely,describe your request/project/expansion. Explain why your request can not be funded using other funding sources. Include any appropriate additional documentation that may help explain your project. Please note: if you include information that is not relevant, or is voluminous, the committee may choose to not consider it. Include in your narrative how your project adheres to the state standards and best practices. "]